bitfinex/quotes_ETHUSD_20220215
["timestamp","ask_amount","ask_price","bid_price","bid_amount"]
[1644919738015,1.33778314,3093.5,3093.4,0.80133189]
[1644919738215,1.90872002,3093.5,3093.4,0.80133189]
[1644919738415,1.33778314,3093.5,3093.4,0.80133189]
[1644919738618,1.90872047,3093.5,3093.4,0.80133189]
[1644919738820,1.33778314,3093.5,3093.4,0.80133189]
[1644919739016,1.90872061,3093.5,3093.4,0.80133189]
[1644919739218,1.90876404,3093.5,3093.4,0.80133189]
[1644919739517,2.71701404,3093.5,3093.4,0.80133189]
[1644919739816,1.33778314,3093.5,3093.4,0.80133189]
[1644919740017,1.90898881,3093.5,3093.4,0.80133189]
[1644919740417,1.90897665,3093.5,3093.4,0.80133189]
[1644919740717,1.90897364,3093.5,3093.4,0.80133189]
[1644919740917,1.90897611,3093.5,3093.4,0.80133189]
[1644919741118,1.33778314,3093.5,3093.4,0.80133189]
[1644919741319,1.9089767,3093.5,3093.4,0.80133189]
[1644919741562,1.90898769,3093.5,3093.4,0.80133189]
[1644919741762,1.90898258,3093.5,3093.4,0.80133189]
[1644919741972,1.33778314,3093.5,3093.4,0.80133189]
[1644919742167,1.90560427,3093.5,3093.4,0.80133189]
[1644919742363,1.90560421,3093.5,3093.4,0.80133189]
[1644919742562,1.33778314,3093.5,3093.4,0.80133189]
[1644919742762,1.90915436,3093.5,3093.4,0.80133189]
[1644919742967,1.33778314,3093.5,3093.4,0.80133189]
[1644919743166,1.90915649,3093.5,3093.4,0.80133189]
[1644919743362,1.33778314,3093.5,3093.4,0.80133189]
[1644919744073,2.71748318,3093.5,3093.4,0.80133189]
[1644919744264,2.71748318,3093.5,3093.3,0.66437384]
[1644919744464,0.57116136,3093.4,3093.3,0.66437384]
[1644919744864,0.57116136,3093.4,3093.3,1.46031876]
[1644919745310,1.37955136,3093.4,3093.3,1.46031876]
[1644919746714,0.57116136,3093.4,3093.3,1.46031876]
[1644919746910,0.57116136,3093.4,3093.3,1.41031876]
[1644919747712,1.33778314,3093.5,3093.3,1.41031876]
[1644919747911,1.33778314,3093.5,3093.4,0.79594492]
[1644919748113,1.33778314,3093.5,3093.0,0.61720781]
[1644919748114,6.7,3093.2,3092.6,1.85730013]
[1644919748312,6.7,3093.2,3091.5,9.59509367]
[1644919748313,1.46795615,3092.5,3091.7,0.5]
[1644919748712,3.08516765,3092.5,3091.7,0.5]
[1644919748964,1.6420317,3092.5,3091.7,0.5]
[1644919749175,1.46795615,3092.5,3091.4,0.97637969]
[1644919749766,0.80861,3092.3,3091.4,1.79469416]
[1644919750174,0.80861,3092.3,3091.5,0.81831447]
[1644919750364,0.80861,3092.3,3091.4,0.97637969]
[1644919750568,0.80861,3092.3,3091.2,2.8845836]
[1644919750866,1.76148783,3092.1,3091.2,1.00769913]
[1644919751067,0.80862,3092.0,3091.2,1.00769913]
[1644919751869,0.80862,3092.0,3091.2,1.92997188]
[1644919752068,1.79616784,3091.8,3091.2,2.7210669]
[1644919752269,1.46795615,3092.5,3091.4,18.97]
[1644919752570,1.46795615,3092.5,3091.6,19.78831447]
[1644919752813,1.46795615,3092.5,3091.8,18.97]
[1644919753019,1.46795615,3092.5,3091.9,1.30769913]
[1644919753213,1.46795615,3092.5,3092.0,0.85546779]
[1644919754416,1.46795615,3092.5,3092.1,3.4089467]
[1644919754612,1.46795615,3092.5,3092.1,4.2173767]
[1644919754812,1.46795615,3092.5,3092.1,5.0257667]
[1644919755412,1.46795615,3092.5,3092.1,6.03346583]
[1644919755615,1.46795615,3092.5,3092.2,1.0]
[1644919755912,1.46795615,3092.5,3092.3,3.27435064]
[1644919756112,1.46795615,3092.5,3092.3,4.08148881]
[1644919756322,1.46795615,3092.5,3092.2,1.10833]
[1644919756323,1.46795615,3092.5,3092.2,0.80833]
[1644919756567,1.46795615,3092.5,3091.8,1.00769913]
[1644919757367,0.8085625,3092.4,3092.0,0.98718387]
[1644919757565,1.76405022,3092.4,3091.7,1.61696]
[1644919757765,1.76405022,3092.4,3091.7,1.91696]
[1644919758565,1.76405022,3092.4,3092.0,1.0081583]
[1644919759365,1.76405022,3092.4,3091.7,1.61696]
[1644919760216,1.76405022,3092.4,3091.7,1.91696]
[1644919760418,0.14692772,3092.4,3091.7,1.91696]
[1644919760621,1.46795615,3092.5,3091.7,1.91696]
[1644919761219,1.46795615,3092.5,3091.7,0.3]
[1644919761420,1.46795615,3092.5,3092.0,1.01146371]
[1644919761918,0.8086102,3092.4,3092.0,1.01146371]
[1644919762122,0.19077724,3092.4,3092.0,1.01146371]
[1644919762319,1.46795615,3092.5,3091.5,4.91394]
[1644919762727,1.46795615,3092.5,3091.6,0.3]
[1644919763724,0.80852,3092.2,3091.7,0.80854]
[1644919763963,0.80852,3092.2,3091.8,0.00621904]
[1644919764768,0.75998726,3092.2,3091.8,0.00621904]
[1644919766667,0.1315321,3092.3,3091.9,1.61693]
[1644919766867,1.61709,3092.4,3092.0,0.00621904]
[1644919767066,1.74900779,3092.4,3092.0,0.00621904]
[1644919767469,2.55757379,3092.4,3092.0,0.00621904]
[1644919767734,1.74900779,3092.4,3092.0,0.00621904]
[1644919768135,0.80852,3092.2,3092.1,0.51685023]
[1644919768535,0.19274862,3092.2,3092.1,0.51685023]
[1644919769940,3.61752738,3092.2,3091.6,0.00621843]
[1644919770138,3.61752738,3092.2,3091.2,10.45028]
[1644919770139,1.00137322,3092.2,3091.7,0.50553211]
[1644919770336,0.80862,3092.1,3091.8,0.51175054]
[1644919770538,0.93979134,3092.1,3091.9,0.50553211]
[1644919770738,0.93979134,3092.1,3092.0,0.50553211]
[1644919770938,0.13117134,3092.1,3092.0,0.50553211]
[1644919771238,1.61727,3092.2,3092.0,0.50553211]
[1644919771466,2.42595,3092.2,3092.0,0.50553211]
[1644919771667,2.4259667,3092.1,3091.9,0.00621843]
[1644919771867,2.60389122,3092.1,3092.0,0.50543681]
[1644919772066,1.79524122,3092.1,3092.0,0.00621843]
[1644919772268,1.79524122,3092.1,3091.5,0.00621843]
[1644919772471,1.79524122,3092.1,3091.6,0.50539636]
[1644919772767,1.79524122,3092.1,3091.7,0.51161479]
[1644919772968,0.80866,3092.0,3091.8,0.51161479]
[1644919773168,3.2346367,3092.1,3091.9,0.50539636]
[1644919773368,3.41919301,3092.1,3091.9,0.50539636]
[1644919773768,0.8086035,3092.0,3091.9,0.50539636]
[1644919773968,0.93932628,3092.0,3091.9,0.50539636]
[1644919774167,1.74803628,3092.0,3091.9,0.50539636]
[1644919774369,0.13072278,3092.0,3091.6,0.50539636]
[1644919774574,3.40516622,3092.1,3091.7,0.51161479]
[1644919774769,3.40516622,3092.1,3091.8,0.50539636]
[1644919774974,3.40516622,3092.1,3091.9,0.50539636]
[1644919776016,0.80869,3092.0,3091.9,0.50539636]
[1644919776424,4.94873317,3092.0,3091.9,0.50539636]
[1644919776616,4.94873317,3092.0,3091.3,0.00621843]
[1644919776617,0.8087695,3091.9,3091.3,0.00621843]
[1644919776815,0.97221739,3091.9,3091.4,0.50578775]
[1644919777017,0.80876,3091.8,3091.5,0.00621843]
[1644919777217,0.80876,3091.8,3091.6,0.50578775]
[1644919777620,4.96792491,3091.8,3091.6,0.00621843]
[1644919777818,3.40838557,3091.7,3091.2,0.00911044]
[1644919778015,4.68229557,3091.7,3091.3,0.51083978]
[1644919778216,0.80893,3091.6,3091.2,0.00289201]
[1644919778415,3.64626607,3091.5,3091.2,0.00289196]
[1644919778615,0.80891,3091.4,3091.2,0.00289196]
[1644919778815,1.75887837,3091.4,3091.2,0.00289196]
[1644919779061,1.75887837,3091.4,3091.2,0.49081426]
[1644919779263,2.56774837,3091.4,3091.3,0.48170387]
[1644919779462,5.9723084,3091.4,3091.3,0.48170387]
[1644919779668,5.9723084,3091.4,3091.3,0.4879223]
[1644919780462,5.9723084,3091.4,3091.3,0.00621843]
[1644919780764,3.2354939,3091.2,3090.7,0.00621843]
[1644919780963,4.99866768,3091.2,3090.8,0.47648931]
[1644919781162,4.99866768,3091.2,3090.9,0.00621843]
[1644919781365,6.16395446,3091.6,3090.9,0.00621843]
[1644919781366,1.2209,3091.6,3090.9,0.00621843]
[1644919781562,1.2209,3091.6,3090.9,0.81493843]
[1644919781762,1.2209,3091.6,3091.1,0.3]
[1644919781963,1.2209,3091.6,3091.2,0.48270774]
[1644919781964,2.029615,3091.6,3091.2,0.48270774]
[1644919782164,2.55779467,3091.6,3091.3,0.48270774]
[1644919782365,2.55779467,3091.6,3091.4,0.47648931]
[1644919782565,2.55779467,3091.6,3091.3,0.00621843]
[1644919782816,2.55779467,3091.6,3091.1,0.00265284]
[1644919783012,2.55779467,3091.6,3090.9,0.48520633]
[1644919783013,0.808781,3091.5,3090.9,0.48520633]
[1644919783212,0.80879,3091.4,3091.0,0.00621843]
[1644919783412,0.80879,3091.4,3091.2,0.00266125]
[1644919783617,0.80879,3091.4,3091.2,0.81142125]
[1644919783912,0.80879,3091.4,3091.3,0.48520633]
[1644919784113,0.80879,3091.4,3091.3,0.49142476]
[1644919784314,1.6175595,3091.4,3091.3,0.49142476]
[1644919784515,1.79774406,3091.4,3091.3,0.49142476]
[1644919786115,5.16533207,3091.4,3091.3,0.00621843]
[1644919786317,5.18332312,3091.4,3091.2,0.00266126]
[1644919786566,0.80887,3091.3,3091.2,0.00266126]
[1644919786766,5.11782,3091.3,3091.0,0.43325204]
[1644919786967,5.11782,3091.3,3091.1,0.00887597]
[1644919786968,0.8089689,3091.2,3091.1,0.00887597]
[1644919787164,0.8089689,3091.2,3091.1,0.00265754]
[1644919787165,1.29092906,3091.2,3091.1,0.00265754]
[1644919787565,4.79092906,3091.2,3091.1,0.00265754]
[1644919787765,1.29092906,3091.2,3091.1,0.00265754]
[1644919788067,1.6180078,3091.0,3090.5,0.00621843]
[1644919788265,0.3,3090.9,3090.5,0.01063209]
[1644919788465,0.62132869,3091.0,3090.5,0.01063209]
[1644919789063,0.62132869,3091.0,3090.2,0.80903]
[1644919789264,2.4270578,3090.7,3090.6,0.00265784]
[1644919789464,2.60095496,3090.7,3090.6,0.00265784]
[1644919790317,0.8090788,3090.5,3090.0,0.00621843]
[1644919790524,4.39593989,3090.5,3090.0,0.01686161]
[1644919790821,0.97928616,3090.5,3090.0,0.01686161]
[1644919791419,2.59744846,3090.5,3090.0,0.00621843]
[1644919791617,2.61915939,3090.5,3090.0,0.00621843]
[1644919791819,2.61915939,3090.5,3090.1,0.00266062]
[1644919792419,0.8091,3090.3,3090.1,0.00266062]
[1644919792620,1.6182139,3090.3,3089.8,0.81530843]
[1644919792819,1.75527793,3090.3,3089.8,0.81530843]
[1644919793021,1.75527793,3090.3,3090.1,0.00266059]
[1644919793822,1.75527793,3090.3,3090.0,0.00621843]
[1644919793823,0.94616403,3090.3,3090.0,0.00621843]
[1644919794066,0.80911,3090.2,3090.0,0.00265849]
[1644919795069,0.80911,3090.2,3090.0,0.00621843]
[1644919795468,1.6181418,3090.2,3090.0,0.00621843]
[1644919795668,1.75962595,3090.2,3090.0,0.00621843]
[1644919796076,1.1401,3090.8,3090.0,0.00621843]
[1644919796077,0.17142258,3090.9,3090.3,20.0]
[1644919796272,0.80878,3091.0,3090.4,0.00621843]
[1644919796470,0.17944341,3090.8,3090.4,0.00621843]
[1644919796669,0.80878,3091.0,3090.4,0.00621843]
[1644919797071,1.61793,3090.9,3090.4,0.00621843]
[1644919797271,1.81716143,3090.9,3090.4,0.00621843]
[1644919797472,1.6178397,3090.7,3090.4,0.81520843]
[1644919797712,1.79416516,3090.7,3090.4,0.81520843]
[1644919797911,1.79416516,3090.7,3090.5,0.00265829]
[1644919798615,1.79416516,3090.7,3090.4,0.00621843]
[1644919798814,0.80891,3090.6,3090.4,0.00621843]
[1644919799013,0.8089757,3090.5,3090.4,0.00887684]
[1644919799212,0.9701175,3090.5,3090.4,0.00887684]
[1644919799416,2.4269,3091.3,3091.0,17.4119882]
[1644919799612,2.4269,3091.3,3091.0,17.41820663]
[1644919799812,2.4269,3091.3,3091.1,0.00621843]
[1644919799813,0.3,3091.2,3091.1,0.00621843]
[1644919800013,1.30685322,3091.2,3091.1,0.00621843]
[1644919800214,1.81575322,3091.2,3091.1,0.00621843]
[1644919800414,1.00685322,3091.2,3091.1,0.00621843]
[1644919801216,3.2641748,3091.3,3091.1,0.00621843]
[1644919801481,3.41411884,3091.3,3091.1,0.00621843]
[1644919801864,4.22296884,3091.3,3091.1,0.00621843]
[1644919802064,1.00198234,3091.2,3091.1,0.00621843]
[1644919803868,1.00198234,3091.2,3091.0,17.40308738]
[1644919804566,1.00198234,3091.2,3091.0,17.40137674]
[1644919805733,1.00198234,3091.2,3091.1,0.3]
[1644919805931,1.00198234,3091.2,3091.0,17.40137674]
[1644919806132,1.00198234,3091.2,3091.1,0.3]
[1644919806635,1.00198234,3091.2,3091.1,0.2960336]
[1644919806833,1.00198234,3091.2,3091.1,0.75127456]
[1644919807233,1.00198234,3091.2,3091.1,0.7512708]
[1644919808537,1.17995417,3091.3,3091.1,4.0512708]
[1644919808738,9.7863539,3092.2,3092.0,0.37764447]
[1644919808964,0.93634937,3092.1,3092.0,0.37764447]
[1644919809170,0.93634937,3092.1,3092.0,0.36364447]
[1644919809171,1.13106147,3092.1,3092.0,0.36364447]
[1644919809368,0.93634937,3092.1,3092.0,0.36364447]
[1644919809567,1.74511937,3092.1,3092.0,0.36364447]
[1644919809965,2.88632775,3092.1,3092.0,0.36364447]
[1644919810668,6.33962356,3092.1,3092.0,0.36364447]
[1644919810867,6.63962356,3092.1,3092.0,0.36364447]
[1644919811067,6.7863003,3092.1,3092.0,0.36364447]
[1644919813120,3.33300449,3092.1,3092.0,0.36364447]
[1644919814120,1.74511937,3092.1,3092.0,0.36364447]
[1644919814520,0.93634937,3092.1,3092.0,0.36364447]
[1644919815327,0.93634937,3092.1,3092.0,0.80121422]
[1644919815723,0.93634937,3092.1,3092.0,1.10121422]
[1644919816122,0.95444623,3092.1,3092.0,1.10121422]
[1644919816869,0.01809686,3092.1,3092.0,1.10121422]
[1644919817368,0.95420321,3092.1,3092.0,1.10121422]
[1644919817567,0.01809686,3092.1,3092.0,1.10121422]
[1644919821920,0.01809686,3092.1,3092.0,4.40121422]
[1644919822122,0.01809686,3092.1,3092.0,4.30465935]
[1644919825864,0.80877,3092.2,3092.0,4.30465935]
[1644919826064,0.80877,3092.2,3092.0,4.6756496]
[1644919826465,0.93570282,3092.1,3092.0,4.6756496]
[1644919827465,1.79805748,3092.2,3092.0,5.10437684]
[1644919827715,1.79805748,3092.2,3092.0,4.6756496]
[1644919827916,0.98946638,3092.2,3092.0,4.6756496]
[1644919828116,0.80877,3092.2,3092.0,4.6756496]
[1644919829617,1.6173678,3092.2,3092.0,4.6756496]
[1644919829820,1.74887592,3092.2,3092.0,4.6756496]
[1644919830519,0.94027812,3092.2,3092.0,4.6756496]
[1644919830720,0.80877,3092.2,3092.0,4.6756496]
[1644919831565,0.80877,3092.2,3092.0,7.83343648]
[1644919831766,0.99457368,3092.4,3092.2,0.51116579]
[1644919831967,0.80843,3092.4,3092.3,0.41902511]
[1644919832470,6.46795615,3092.5,3092.3,0.41902511]
[1644919832766,6.46795615,3092.5,3092.4,0.37692885]
[1644919832767,8.08490615,3092.5,3092.4,0.37692885]
[1644919832965,8.27418703,3092.5,3092.3,0.80849]
[1644919833168,8.27418703,3092.5,3092.4,0.91670561]
[1644919833468,3.08490615,3092.5,3092.4,0.91670561]
[1644919834067,1.46795615,3092.5,3092.4,1.21670561]
[1644919834469,1.46795615,3092.5,3092.4,0.3]
[1644919836416,1.46795615,3092.5,3092.4,0.67675079]
[1644919837317,1.46795615,3092.5,3092.4,0.67673532]
[1644919837517,6.46795615,3092.5,3092.4,0.67673532]
[1644919837719,6.46061597,3092.5,3092.4,0.67673532]
[1644919837918,1.46061597,3092.5,3092.4,0.67673532]
[1644919838975,1.46061597,3092.5,3092.4,4.41873213]
[1644919839173,0.81132179,3092.6,3092.5,7.0]
[1644919839174,0.00285179,3092.6,3092.5,7.0]
[1644919839374,0.00285179,3092.6,3092.5,7.37673532]
[1644919839572,1.31689997,3093.6,3092.5,7.37673532]
[1644919839573,5.0,3093.1,3092.5,7.37673532]
[1644919839777,0.95862035,3093.0,3092.6,1.99326532]
[1644919839973,0.95862035,3093.0,3092.8,0.96229363]
[1644919840173,0.95862035,3093.0,3092.8,1.26229363]
[1644919840773,5.95287303,3093.2,3092.8,1.26229363]
[1644919840972,5.95287303,3093.2,3092.8,1.10827]
[1644919840973,5.0,3092.9,3092.8,1.10827]
[1644919841174,5.95811853,3092.9,3092.8,1.10827]
[1644919841378,5.95811853,3092.9,3092.8,0.80827]
[1644919842376,9.16715594,3092.9,3092.8,0.80827]
[1644919843917,9.16715594,3092.9,3092.8,1.10827]
[1644919844519,9.78273037,3092.9,3092.8,1.10827]
[1644919845119,9.78273037,3092.9,3092.8,4.40827]
[1644919845318,9.78273037,3092.9,3092.8,4.10827]
[1644919846118,9.4798589,3092.9,3092.8,4.12267605]
[1644919846565,8.86428447,3092.9,3092.8,4.12267605]
[1644919848069,5.65524706,3092.9,3092.8,4.12267605]
[1644919848370,8.9276945,3092.9,3092.8,4.12267605]
[1644919848772,5.55,3092.8,3091.8,9.26687926]
[1644919848973,0.80882,3092.4,3091.9,0.40698333]
[1644919849171,4.677,3092.0,3091.8,9.26687926]
[1644919849375,4.25374487,3091.9,3091.8,9.26687926]
[1644919849570,0.95811853,3091.9,3091.8,9.26687926]
[1644919849771,0.95811853,3091.9,3091.7,0.80882]
[1644919850225,0.95811853,3091.9,3091.0,2.28146971]
[1644919850226,4.677,3091.8,3091.6,1.61749]
[1644919850420,0.95811853,3091.7,3091.6,1.61749]
[1644919850823,0.95811853,3091.7,3091.5,0.80872]
[1644919851222,4.677,3091.6,3091.5,0.80872]
[1644919851427,5.63511853,3091.6,3091.5,1.21590353]
[1644919852021,5.63511853,3091.6,3091.5,1.51590353]
[1644919853527,5.63511853,3091.6,3091.5,0.70718353]
[1644919853723,5.63511853,3091.6,3091.4,0.11704426]
[1644919853970,0.95811853,3091.5,3091.4,0.11704426]
[1644919854169,0.95811853,3091.5,3091.4,0.54257519]
[1644919854368,0.95811853,3091.5,3091.3,1.62383651]
[1644919854564,5.63511853,3091.4,3091.3,1.62383651]
[1644919854765,5.63511853,3091.4,3091.3,2.04920571]
[1644919855167,5.63511853,3091.4,3091.3,2.34920571]
[1644919855866,5.61855035,3091.4,3091.3,5.64920571]
[1644919857067,4.677,3091.4,3091.3,5.64920571]
[1644919857267,5.61849566,3091.4,3091.3,5.64920571]
[1644919859923,5.61820767,3091.4,3091.3,5.64920571]
[1644919860325,4.677,3091.4,3091.3,5.64920571]
[1644919860623,4.69099366,3091.4,3091.3,5.64920571]
[1644919861233,5.63221022,3091.4,3091.3,5.64920571]
[1644919862770,5.63221022,3091.4,3091.3,5.22383651]
[1644919863569,5.63208341,3091.4,3091.3,5.22383651]
[1644919863775,5.63208341,3091.4,3091.3,5.21766]
[1644919867525,4.69099366,3091.4,3091.3,5.21766]
[1644919867924,5.63122752,3091.4,3091.3,5.21766]
[1644919869074,0.01399366,3091.4,3091.3,5.64229524]
[1644919869472,4.69099366,3091.4,3091.3,5.64229524]
[1644919871776,4.69099366,3091.4,3091.3,5.21766]
[1644919871977,4.69099366,3091.4,3091.3,5.16766]
[1644919875426,0.01399366,3091.4,3091.3,5.16766]
[1644919875821,3.51399366,3091.4,3091.3,2.62782681]
[1644919876023,6.09595858,3091.4,3091.3,2.62782681]
[1644919876224,1.20941654,3090.8,3090.3,20.0114312]
[1644919876473,4.677,3090.5,3090.3,21.6294912]
[1644919876677,4.677,3090.5,3090.4,1.2127982]
[1644919877876,5.486151,3090.5,3090.4,1.2127982]
[1644919878076,5.62488007,3090.5,3090.4,4.8127982]
[1644919879179,5.62488007,3090.5,3090.4,1.5127982]
[1644919880622,5.63871638,3090.5,3090.4,1.5127982]
[1644919881233,4.69083631,3090.5,3090.4,1.5127982]
[1644919881427,0.01383631,3090.5,3090.4,1.5127982]
[1644919882225,0.01383631,3090.5,3090.4,1.4627982]
[1644919882625,0.01383631,3090.5,3090.4,0.6538982]
[1644919882825,0.01383631,3090.5,3090.4,0.4038982]
[1644919884074,4.69083631,3090.5,3090.4,0.4038982]
[1644919884475,4.68868168,3090.5,3090.4,0.4038982]
[1644919885875,4.70159566,3090.5,3090.4,0.4038982]
[1644919886674,0.02459566,3090.5,3090.4,1.21769797]
[1644919886873,0.02459566,3090.5,3090.4,5.10144834]
[1644919886874,0.01168168,3090.5,3090.4,5.10144834]
[1644919887076,0.01168168,3090.5,3090.4,2.21769797]
[1644919888820,0.01168168,3090.5,3090.4,1.21769797]
[1644919889020,0.01168168,3090.5,3090.4,0.4038982]
[1644919889422,0.01168168,3090.5,3090.4,1.21829731]
[1644919889823,0.01168168,3090.5,3090.4,2.21829731]
[1644919890624,1.20941654,3090.8,3090.6,1.15552856]
[1644919890824,1.20941654,3090.8,3090.7,0.4038982]
[1644919892070,1.20941654,3090.8,3090.7,0.41004802]
[1644919894071,2.17444941,3090.8,3090.7,0.41004802]
[1644919895919,2.17444941,3090.8,3090.7,0.42569329]
[1644919896320,2.17449259,3090.8,3090.7,0.42569329]
[1644919896924,2.17449259,3090.8,3090.6,0.81195627]
[1644919897130,0.96507605,3090.7,3090.6,0.73764956]
[1644919897322,1.70858623,3090.8,3090.7,0.56206204]
[1644919897526,6.38558623,3090.8,3090.7,0.56206204]
[1644919897721,5.88641654,3090.8,3090.7,0.56206204]
[1644919898226,9.49487945,3090.8,3090.7,0.56206204]
[1644919898423,9.64395272,3090.8,3090.7,0.56206204]
[1644919898723,6.33548981,3090.8,3090.7,0.56206204]
[1644919900171,9.56228085,3090.8,3090.7,0.56206204]
[1644919900568,6.33548981,3090.8,3090.7,0.56206204]
[1644919902370,9.53696039,3090.8,3090.7,0.56206204]
[1644919905721,9.55208166,3090.8,3090.7,0.56206204]
[1644919906323,6.35061108,3090.8,3090.7,0.56206204]
[1644919906583,1.67361108,3090.8,3090.7,0.56206204]
[1644919907381,6.35061108,3090.8,3090.7,0.56206204]
[1644919909785,6.05061108,3090.8,3090.7,0.56206204]
[1644919909985,5.90153781,3090.8,3090.7,0.56206204]
[1644919910228,1.22453781,3090.8,3090.7,0.56206204]
[1644919910425,1.24433051,3090.8,3090.7,0.56206204]
[1644919911029,1.24433051,3090.8,3090.7,1.37093204]
[1644919913430,0.17100978,3091.4,3090.7,4.82868507]
[1644919913631,0.00285979,3091.4,3091.0,0.61141803]
[1644919913828,0.00285979,3091.4,3091.1,0.80863]
[1644919914078,0.00285979,3091.4,3091.1,1.61795208]
[1644919914379,0.13280734,3092.1,3091.1,1.61795208]
[1644919914577,0.00263123,3091.4,3091.1,0.80863]
[1644919914781,0.00263123,3091.4,3091.1,0.80858]
[1644919915182,0.00263123,3091.4,3091.2,0.3]
[1644919915377,4.677,3091.5,3091.2,0.3]
[1644919915587,0.8087402,3091.7,3091.2,0.3]
[1644919915782,0.00263122,3091.4,3091.2,0.3]
[1644919916380,0.00263122,3091.4,3091.2,1.10875]
[1644919916579,4.677,3091.5,3091.2,1.10875]
[1644919916780,1.75928982,3091.8,3091.2,1.10875]
[1644919916980,0.0026312,3091.5,3091.3,0.42046833]
[1644919917280,0.0026312,3091.5,3091.2,1.10875]
[1644919917281,0.65957261,3091.1,3090.8,0.00263171]
[1644919917480,4.677,3090.9,3090.8,0.43833911]
[1644919917723,5.6248374,3090.9,3090.8,0.43833911]
[1644919917923,5.6248374,3090.9,3090.8,0.4357074]
[1644919918329,5.47400818,3090.9,3090.8,0.7357074]
[1644919918724,5.47400818,3090.9,3090.8,0.4357074]
[1644919919125,4.52617078,3090.9,3090.7,2.98793204]
[1644919919426,4.52617078,3090.9,3090.8,0.43583509]
[1644919919626,5.45918766,3090.9,3090.8,0.43583509]
[1644919919826,4.52617078,3090.9,3090.8,0.43583509]
[1644919920026,5.45922542,3090.9,3090.8,0.73583509]
[1644919920227,5.45922542,3090.9,3090.8,0.43583509]
[1644919921776,5.45922542,3090.9,3090.8,0.73583509]
[1644919924978,5.45922542,3090.9,3090.8,3.83583509]
[1644919926624,8.78485756,3090.9,3090.8,3.83583509]
[1644919927626,8.78485756,3090.9,3090.8,3.53583509]
[1644919927627,9.08485756,3090.9,3090.8,3.53583509]
[1644919927826,10.08676981,3090.9,3090.8,3.1]
[1644919928625,11.22065679,3090.9,3090.8,3.1]
[1644919929279,11.83690468,3090.9,3090.8,3.1]
[1644919929778,11.22065679,3090.9,3090.8,3.1]
[1644919930381,11.22065679,3090.9,3090.7,0.56473734]
[1644919930579,3.34638228,3090.8,3090.7,0.56473734]
[1644919930981,4.2796607,3090.8,3090.7,0.56206204]
[1644919933026,0.93327842,3090.8,3090.7,0.56206204]
[1644919933423,0.93327842,3090.8,3090.7,0.99788596]
[1644919933623,0.93327842,3090.8,3090.7,0.56206204]
[1644919934623,4.13006059,3090.8,3090.7,0.56206204]
[1644919935426,0.93327842,3090.8,3090.7,0.56206204]
[1644919935626,4.44099981,3090.8,3090.7,0.56206204]
[1644919937079,4.44099981,3090.8,3090.7,3.86206204]
[1644919937277,4.24365155,3090.8,3090.7,3.86206204]
[1644919937480,0.93327842,3090.8,3090.7,4.59768411]
[1644919941534,0.93327842,3090.8,3090.7,8.16477032]
[1644919941728,0.9290681,3090.8,3090.7,8.16477032]
[1644919941932,4.71896303,3090.9,3090.7,8.16477032]
[1644919941933,4.52617078,3090.9,3090.7,8.16477032]
[1644919942129,4.52617078,3090.9,3090.8,0.43884907]
[1644919942330,5.45509102,3090.9,3090.8,0.43884907]
[1644919942530,6.26406102,3090.9,3090.8,0.43884907]
[1644919942930,5.45509102,3090.9,3090.8,0.43884907]
[1644919947382,5.45509102,3090.9,3090.7,4.55913163]
[1644919947583,4.52617078,3090.9,3090.7,4.55913163]
[1644919947841,4.52617078,3090.9,3090.7,4.55645629]
[1644919949240,4.52617078,3090.9,3090.7,4.85645629]
[1644919955624,4.52617078,3090.9,3090.8,0.01435182]
[1644919957530,3.05780794,3090.9,3090.8,0.01435182]
[1644919960781,3.89551301,3091.1,3090.8,0.01435182]
[1644919960782,1.77102683,3091.2,3090.8,6.96435182]
[1644919960983,1.77102683,3091.2,3090.9,0.94832711]
[1644919961182,1.96815331,3091.2,3090.9,1.24832711]
[1644919961383,2.77711131,3091.2,3090.9,1.24832711]
[1644919961583,0.80896,3091.1,3090.9,1.24832711]
[1644919961783,0.80896,3091.1,3090.8,7.77330182]
[1644919961982,0.80896,3091.1,3090.8,8.07330182]
[1644919962584,0.80896,3091.1,3090.8,8.0759771]
[1644919963036,0.80896,3091.1,3090.8,1.1259771]
[1644919963532,0.80896,3091.1,3090.8,1.12330182]
[1644919963734,0.80896,3091.1,3090.8,1.1259771]
[1644919964735,0.80896,3091.1,3090.8,1.12330182]
[1644919965036,0.80896,3091.1,3090.8,1.12597702]
[1644919965837,0.80896,3091.1,3090.8,1.12330182]
[1644919966239,0.80896,3091.1,3090.8,1.12597453]
[1644919967078,0.80896,3091.1,3090.8,1.12330182]
[1644919967278,0.80896,3091.1,3090.8,1.12597453]
[1644919967479,1.74519527,3091.0,3090.9,0.43310801]
[1644919971235,0.93619527,3091.0,3090.9,0.43310801]
[1644919972733,1.74516527,3091.0,3090.9,0.43310801]
[1644919973334,1.67489588,3091.0,3090.9,0.43310801]
[1644919983883,0.86592588,3091.0,3090.9,0.43310801]
[1644919985083,1.67484588,3091.0,3090.9,0.43310801]
[1644919987634,1.67484588,3091.0,3090.8,0.54229625]
[1644919987933,2.432912,3091.1,3090.8,0.54496324]
[1644919988132,2.732912,3091.1,3090.8,0.54496324]
[1644919988332,2.11666411,3091.1,3090.8,0.54496324]
[1644919988533,1.30776411,3091.1,3090.8,0.54496324]
[1644919988737,1.30776411,3091.1,3090.8,1.35119625]
[1644919988986,1.30776411,3091.1,3090.8,1.35386324]
[1644919989888,1.30776411,3091.1,3090.8,1.35119625]
[1644919990286,1.30776411,3091.1,3090.8,0.54496344]
[1644919991087,1.30776411,3091.1,3090.8,0.54229625]
[1644919991292,1.30776411,3091.1,3090.8,0.54496399]
[1644919991686,0.80893,3091.0,3090.8,0.54496399]
[1644919992388,0.80893,3091.0,3090.8,0.54229625]
[1644919993429,0.80893,3091.0,3090.9,0.46016205]
[1644919993631,1.72063775,3091.0,3090.9,0.46016205]
[1644919994832,4.91588568,3091.0,3090.9,0.46016205]
[1644919995033,1.72063775,3091.0,3090.9,0.46016205]
[1644919995233,4.90325091,3091.0,3090.9,0.46016205]
[1644919995435,1.72063775,3091.0,3090.9,0.46016205]
[1644920001233,5.62020625,3091.0,3090.9,0.46016205]
[1644920001434,1.72063775,3091.0,3090.9,0.46016205]
[1644920004483,1.67063775,3091.0,3090.9,0.46016205]
[1644920008034,1.67063775,3091.0,3090.8,0.82336182]
[1644920008234,1.37517789,3091.0,3090.9,0.47614304]
[1644920008431,1.37517789,3091.0,3090.8,0.01435182]
[1644920008432,4.8691444,3091.0,3090.8,0.01701925]
[1644920008631,0.8956754,3090.9,3090.8,0.01701925]
[1644920009233,1.1956754,3090.9,3090.8,0.49038882]
[1644920009434,1.34952454,3090.9,3090.8,0.01435182]
[1644920009631,1.34952454,3090.9,3090.8,0.49037971]
[1644920010033,4.61215894,3090.9,3090.8,0.49037971]
[1644920010234,1.34952454,3090.9,3090.8,0.01435182]
[1644920011033,1.34952454,3090.9,3090.8,0.4904813]